Workbook

Sheet Клиентская база
K1: Рег
B2: № | C2: Регион: | D2: Наименование организации: | E2: Контакты: | F2: Дата контакта: | G2: Результат: | H2: =COUNTIF(H3:H2225,"*!*") -> 1 | I2: Дата следующего контакта: | J2: Недозвон/перезвонить | K2: Связаться позже | L2: В работе | M2: Отказ
B3: 1 | C3: ПНЗ | D3: Неизвестно | G3: Уточнить контакты у Дарьи. | I3: 2015-07-06
B4: 2 | C4: ПНЗ | D4: Машины | E4: хх-хх-хх | F4: 2015-06-16 | G4: Связаться с сотрудником отдела маркетинга Фамилия Отчество. | I4: 2015-08-22
B5: 3 | C5: ПНЗ | D5: Двери | E5: хх-хх-хх | F5: 2015-06-30 | G5: Елена, отправлено КП на адрес penza_ofh@mail.ru | H5: ! | I5: 2015-07-03
B6: 4 | C6: ПНЗ | D6: Кинотеатр | E6: хх-хх-хх | F6: 2015-06-11 | G6: Управляющий Илья Сергеевич. Электронная почта kino1254@penza.ru | I6: 2015-07-11
B7: 5 | C7: ПНЗ
B8: 6 | C8: ПНЗ
B9: 7 | C9: ПНЗ
B10: 8 | C10: ПНЗ
B11: 9 | C11: ПНЗ
B12: 10 | C12: ПНЗ
B13: 11 | C13: ПНЗ
B14: 12 | C14: ПНЗ
B15: 13 | C15: ПНЗ
B16: 14 | C16: ПНЗ
B17: 15 | C17: ПНЗ
B18: 16 | C18: ПНЗ
B19: 17 | C19: ПНЗ
B20: 18 | C20: ПНЗ
B21: 19 | C21: ПНЗ
B22: 20 | C22: ПНЗ
B23: 21 | C23: ПНЗ
B24: 22 | C24: ПНЗ
B25: 23 | C25: ПНЗ
B26: 24 | C26: ПНЗ
B27: 25 | C27: ПНЗ
B28: 26 | C28: ПНЗ
B29: 27 | C29: ПНЗ
B30: 28 | C30: ПНЗ
B31: 29 | C31: ПНЗ
B32: 30 | C32: ПНЗ
B33: 31 | C33: ПНЗ
B34: 32 | C34: ПНЗ
B35: 33 | C35: ПНЗ
B36: 34 | C36: ПНЗ
B37: 35 | C37: ПНЗ
B38: 36 | C38: ПНЗ
B39: 37 | C39: ПНЗ
B40: 38 | C40: ПНЗ
B41: 39 | C41: ПНЗ
B42: 40 | C42: ПНЗ
B43: 41 | C43: ПНЗ
B44: 42 | C44: ПНЗ
B45: 43 | C45: ПНЗ
B46: 44 | C46: ПНЗ
B47: 45 | C47: ПНЗ
B48: 46 | C48: ПНЗ
B49: 47 | C49: ПНЗ
B50: 48 | C50: ПНЗ
B51: 49 | C51: ПНЗ
B52: 50 | C52: ПНЗ
B53: 51 | C53: ПНЗ
B54: 52 | C54: ПНЗ
B55: 53 | C55: ПНЗ
B56: 54 | C56: ПНЗ
B57: 55 | C57: ПНЗ
B58: 56 | C58: ПНЗ
B59: 57 | C59: ПНЗ
B60: 58 | C60: ПНЗ
B61: 59 | C61: ПНЗ
B62: 60 | C62: ПНЗ
B63: 61 | C63: ПНЗ
C64: ПНЗ
B65: 63 | C65: ПНЗ
B66: 64 | C66: ПНЗ
B67: 65 | C67: ПНЗ
B68: 66 | C68: ПНЗ
B69: 67 | C69: ПНЗ
B70: 68 | C70: ПНЗ
B71: 69 | C71: ПНЗ
B72: 70 | C72: ПНЗ
B73: 71 | C73: ПНЗ
B74: 72 | C74: ПНЗ
B75: 73 | C75: ПНЗ
B76: 74 | C76: ПНЗ
B77: 75 | C77: ПНЗ
B78: 76 | C78: ПНЗ
B79: 77 | C79: ПНЗ
B80: 78 | C80: ПНЗ
B81: 79 | C81: ПНЗ
B82: 80 | C82: ПНЗ
B83: 81 | C83: ПНЗ
B84: 82 | C84: ПНЗ
B85: 83 | C85: ПНЗ
B86: 84 | C86: ПНЗ
B87: 85 | C87: ПНЗ
B88: 86 | C88: ПНЗ
B89: 87 | C89: ПНЗ
B90: 88 | C90: ПНЗ
B91: 89 | C91: ПНЗ
B92: 90 | C92: ПНЗ
B93: 91 | C93: ПНЗ
B94: 92 | C94: ПНЗ
B95: 93 | C95: ПНЗ
B96: 94 | C96: ПНЗ
B97: 95 | C97: ПНЗ
B98: 96 | C98: ПНЗ
B99: 97 | C99: ПНЗ
B100: 98 | C100: ПНЗ
B101: 99 | C101: ПНЗ
B102: 100 | C102: ПНЗ
B103: 101 | C103: ПНЗ
B104: 102 | C104: ПНЗ
B105: 103 | C105: ПНЗ
B106: 104 | C106: ПНЗ
B107: 105 | C107: ПНЗ
B108: 106 | C108: ПНЗ
B109: 107 | C109: ПНЗ
B110: 108 | C110: ПНЗ
B111: 109 | C111: ПНЗ
B112: 110 | C112: ПНЗ
B113: 111 | C113: ПНЗ
B114: 112 | C114: ПНЗ
B115: 113 | C115: ПНЗ
B116: 114 | C116: ПНЗ
B117: 115 | C117: ПНЗ
B118: 116 | C118: ПНЗ
B119: 117 | C119: ПНЗ
B120: 118 | C120: ПНЗ
B121: 119 | C121: ПНЗ
B122: 120 | C122: ПНЗ
B123: 121 | C123: ПНЗ
B124: 122 | C124: ПНЗ
B125: 123 | C125: ПНЗ
B126: 124 | C126: ПНЗ
B127: 125 | C127: ПНЗ
B128: 126 | C128: ПНЗ
B129: 127 | C129: ПНЗ
B130: 128 | C130: ПНЗ
B131: 129 | C131: ПНЗ
B132: 130 | C132: ПНЗ
B133: 131 | C133: ПНЗ
B134: 132 | C134: ПНЗ
B135: 133 | C135: ПНЗ
B136: 134 | C136: ПНЗ
B137: 135 | C137: ПНЗ
B138: 136 | C138: ПНЗ
B139: 137 | C139: ПНЗ
B140: 138 | C140: ПНЗ
B141: 139 | C141: ПНЗ
B142: 140 | C142: ПНЗ
B143: 141
B144: 142
B145: 143
B146: 144
B147: 145
B148: 146
B149: 147
B150: 148
B151: 149
B152: 150
B153: 151
B154: 152
B155: 153
B156: 154
B157: 155
B158: 156
B159: 157
B160: 158
B161: 159
B162: 160
B163: 161
B164: 162
B165: 163
B166: 164
B167: 165
B168: 166
B169: 167
B170: 168
B171: 169
B172: 170
B173: 171
B174: 172
B175: 173
B176: 174
B177: 175
B178: 176
B179: 177
B180: 178
B181: 179
B182: 180
B183: 181
B184: 182
B185: 183
B186: 184
B187: 185
B188: 186
B189: 187
B190: 188
B191: 189
B192: 190
B193: 191
B194: 192
B195: 193
B196: 194
B197: 195
B198: 196
B199: 197
B200: 198
... 515 more rows

Sheet Расчет стоимости
B2: "Буртасы" | E2: "Триумф"
B3: Акрил | C3: =7*7000 -> 49000 | E3: Бегущая строка | F3: 14000
B4: Пластик | C4: =4*4000 -> 16000 | E4: Каркас | F4: 15000
B5: АКП | C5: =7*6500 -> 45500 | E5: АКП | F5: =6500*5 -> 32500
B6: Светодиоды | C6: 10000 | E6: Светодиоды | F6: =8*250 -> 2000
B7: Трансформаторы | C7: =9*3500 -> 31500 | E7: Трансформаторы | F7: =1*3500 -> 3500
B8: Риски | C8: 3000 | E8: Накладные расходы/метизы | F8: 10000
B9: Расходные материалы | C9: 10000 | E9: Теплоизоляция | F9: =2*1500 -> 3000
B10: Себестоимость | C10: =SUM(C3:C9) -> 165000 | E10: Себестоимость | F10: =SUM(F3:F9) -> 80000
B11: К2 | C11: =C10*2 -> 330000 | E11: К2 | F11: =F10*2 -> 160000
B12: Монтаж | C12: 30000 | E12: Монтаж | F12: 25000
B13: Фрезеровка | C13: 15000 | E13: Фрезеровка | F13: 6000
B14: Транспорт | C14: 5000 | E14: Транспорт | F14: 20000
B15: Итого: | C15: =SUM(C11:C14) -> 380000 | E15: Итого: | F15: =SUM(F11:F14) -> 211000
B17: Банк "Россия"
B18: Таблички на дверь (2 шт) | C18: =550*2 -> 1100
B19: Таблички подвесные (2 шт) | C19: =1500*2 -> 3000
B20: Наклейки (3 шт) | C20: =500*3 -> 1500
B21: Панель | C21: 2500
B24: Светодиоды | C24: 5000
B25: Трансформаторы | C25: =1*3500 -> 3500
B26: Расходные материалы | C26: 2000
B27: Себестоимость | C27: =SUM(C21:C26) -> 13000
B28: К2 | C28: =C27*2 -> 26000
B29: Монтаж | C29: 3000
B30: Фрезеровка | C30: 1500
B31: Транспорт | C31: 5000
B32: Итого: | C32: =SUM(C28:C31) -> 35500
B34: "Костер"
B35: Бегущая строка | C35: 38000
B36: Каркас | C36: 8000
B37: АКП | C37: =3*6500 -> 19500
B38: Светодиоды | C38: =190*60 -> 11400
B39: Трансформаторы | C39: =1*3500 -> 3500
B40: Полистерол | C40: =6000*2 -> 12000
B41: Накладные расходы/метизы | C41: 10000
B42: МДФ | C42: =1500*8 -> 12000
B43: Себестоимость | C43: =SUM(C35:C42) -> 114400
B44: К2 | C44: =C43*2 -> 228800
B45: Монтаж | C45: 25000
B46: Фрезеровка | C46: 6000
B47: Транспорт | C47: 3000
B48: Итого: | C48: =SUM(C44:C47) -> 262800

Sheet Текущие заказы
B2: Название: | C2: Общая сумма: | D2: Оплачено: | F2: Долг: | H2: Контракт в работе | I2: Контракт закрыт | J2: Итого (общая сумма): | K2: Итого (задолжность): | L2: План на месяц: | M2: Факт: | N2: % выполнения:
D3: Сумма: | E3: Дата: | J3: =SUM(C4:C384) -> 293390 | K3: =SUM(F4:F384) -> 154810 | L3: 350000 | M3: =J3-K3 -> 138580 | N3: =M3/L3 -> 0.3959428571
B4: Игорь Чернышев | C4: 4430 | D4: 4430 | E4: 2015-06-11 | F4: =C4-D4 -> 0
B5: Игорь Чернышев | C5: 21700 | F5: =C5-D5 -> 21700
B6: Хасан | C6: 900 | D6: 900 | E6: 2015-06-11 | F6: =C6-D6 -> 0
B7: Влад | C7: 4300 | D7: 2650 | E7: 2015-06-17 | F7: =C7-D7 -> 1650
B8: Автомойка на западной | C8: 2050 | D8: 2050 | E8: 2015-06-17 | F8: 0
B9: Александр (автосервис) | C9: 14000 | D9: 6000 | E9: 2015-07-03 | F9: 8000
B10: Александр (автосервис) | C10: 2000 | D10: 2000 | E10: 2015-06-18 | F10: 0
B11: Квадрациклы | C11: 600 | D11: 600 | E11: 2015-06-17 | F11: 0
B12: Восход | C12: 2550 | D12: 2550 | E12: 2015-06-19 | F12: 0
B13: Пиво "Прага"/Продукты из казахстана | C13: 24000 | D13: 10000 | E13: 2015-06-22 | F13: 14000
B14: Триумф (Петровск) | C14: 214460 | D14: 105000 | E14: 2015-06-24 | F14: 109460
B15: Элекстроинструмент | C15: 2400 | D15: 2400 | E15: 2015-07-06 | F15: 0
F16: 0
F17: 0
F18: 0
F19: 0
F20: 0
F21: 0
F22: 0
F23: 0
F24: 0
F25: 0
F26: 0
F27: 0
F28: 0
F29: 0
F30: 0
F31: 0
F32: 0
F33: 0
F34: 0
F35: 0
F36: 0
F37: 0
F38: 0
F39: 0
F40: 0
F41: 0
F42: =C42-D42 -> 0
F43: 0
F44: 0
F45: 0
F46: 0
F47: 0
F48: =C48-D48 -> 0
F49: 0
F50: 0
F51: 0
F52: 0
F53: 0
F54: 0
F55: 0
F56: 0
F57: 0
F58: 0
F59: 0
F60: 0
F61: 0
F62: 0
F63: 0
F64: 0
F65: 0
F66: 0
F67: 0
F68: 0
F69: 0
F70: 0
F71: 0
F72: 0
F73: 0
F74: 0
F75: 0
F76: 0
F77: 0
F78: 0
F79: 0
F80: 0
F81: 0
F82: 0
F83: 0
F84: 0
F85: 0
F86: 0
F87: 0
F88: 0
F89: 0
F90: 0
F91: 0
F92: 0
F93: 0
F94: 0
F95: 0
F96: 0
F97: 0
F98: 0
F99: 0
F100: 0
F101: 0
F102: 0
F103: 0
F104: 0
F105: 0
F106: 0
F107: 0
F108: 0
F109: 0
F110: 0
F111: 0
F112: =C112-D112 -> 0
F113: 0
F114: 0
F115: 0
F116: 0
F117: 0
F118: 0
F119: 0
F120: 0
F121: 0
F122: 0
F123: 0
F124: 0
F125: 0
F126: 0
F127: 0
F128: 0
F129: 0
F130: 0
F131: 0
F132: 0
F133: 0
F134: 0
F135: 0
F136: 0
F137: 0
F138: 0
F139: 0
F140: 0
F141: 0
F142: 0
F143: 0
F144: 0
F145: 0
F146: 0
F147: 0
F148: 0
F149: 0
F150: 0
F151: 0
F152: 0
F153: 0
F154: 0
F155: 0
F156: 0
F157: 0
F158: 0
F159: 0
F160: 0
F161: 0
F162: 0
F163: 0
F164: 0
F165: 0
F166: 0
F167: 0
F168: 0
F169: 0
F170: 0
F171: 0
F172: 0
F173: 0
F174: 0
F175: 0
F176: =C176-D176 -> 0
F177: 0
F178: 0
F179: 0
F180: 0
F181: 0
F182: 0
F183: 0
F184: 0
F185: 0
F186: 0
F187: 0
F188: 0
F189: 0
F190: 0
F191: 0
F192: 0
F193: 0
F194: 0
F195: 0
F196: 0
F197: 0
F198: 0
F199: 0
F200: 0
F201: 0
... 183 more rows
